Workbook

Sheet Calculator
A2: Methane (CH4), a powerful greenhouse gas, is emitted from landfills resulting from the decaying of organic waste over time under anaerobic conditions. With this Avoided Landfilled Food Waste Emissions Calculator, users can estimate the amount of methane emissions avoided by not sending food waste to a landfill. The calculator is built upon the methodology included in EPA’s Quantifying Methane Emissions from Landfilled Food Waste report. The calculator relies on key landfill parameters (e.g., gas collection system schedule and efficiency) that are representative of a national average. Results at specific landfill sites may vary.
A3: The calculator assumes food waste is prevented rather than landfilled. If, instead, food waste is generated and managed through a different pathway, such as anaerobic digestion or composting, some emissions may occur. Please see EPA report “From Field to Bin: The Environmental Impacts of U.S. Food Waste Pathways” for information on relative greenhouse gas emissions of other pathways. For detailed information on the calculator methodology, please see the Documentation tabs.
A4: User Input
A5: To use the calculator, please enter values in the GREEN cells. Enter the starting year and tonnages of food waste not going to landfill per year for up to six years. Select a global warming potential (GWP) or use the default value (28). EPA suggests using a value of 28 to estimate 100-year GWP of methane and a value of 84 to estimate 20-year GWP. All other fields and tabs of the calculator are protected to avoid unintentional changes to the underlying modeling.
A6: Variable | B6: Value | C6: Assumptions/Notes
A7: Enter Methane Global Warming Potential: (kgCO2 equivalent/kg CH4) | B7: 28 | C7: Default for 100-year time horizon: 28 Default for 20-year time horizon: 84
A8: Select starting calendar year: | B8: 2025
A9: Year | B9: Enter the Value of Food Waste Not Sent to Landfill Each Year (Short tons per year) | C9: Assumptions/Notes (Use this column as needed to note food waste amounts and assumptions)
A10: =_xlfn.CONCAT("Year 1 / ",'Detailed Results'!A68) -> Year 1 / 2025 | B10: 1000
A11: =_xlfn.CONCAT("Year 2 / ",'Detailed Results'!A69) -> Year 2 / 2026 | B11: 1000
A12: =_xlfn.CONCAT("Year 3 / ",'Detailed Results'!A70) -> Year 3 / 2027 | B12: 1000
A13: =_xlfn.CONCAT("Year 4 / ",'Detailed Results'!A71) -> Year 4 / 2028 | B13: 1000
A14: =_xlfn.CONCAT("Year 5 / ",'Detailed Results'!A72) -> Year 5 / 2029 | B14: 1000
A15: =_xlfn.CONCAT("Year 6 / ",'Detailed Results'!A73) -> Year 6 / 2030 | B15: 1000
A17: Results - Summary
A18: Based on results from the EPA’s Avoided Landfilled Food Waste Methane Emissions Calculator, approximately
A19: =_xlfn.CONCAT(ROUND(B21,1)," total metric tons of methane would be avoided between ",A28," and ",A53,".") -> 263.7 total metric tons of methane would be avoided between 2025 and 2050.
A20: Total Avoided Emissions | B20: Value
A21: Total Metric Tons CH4 Avoided | B21: =B54 -> 263.7
A22: Total Metric Tons of CO2eq. Avoided | B22: =C54 -> 7383
A24: Results - Methane Emissions Avoided by Year
A25: The table below shows avoided methane emissions expressed as metric tons (MT) of methane emissions and metric tons (MT) of carbon dioxide equivalents (CO2eq).
A27: Year | B27: Metric Tons (MT) CH4 Avoided | C27: Metric Tons (MT) CO2 Equivalent Avoided
A28: ='Detailed Results'!A68 -> 2025 | B28: ='Detailed Results'!C68 -> 10.09 | C28: =B28*$B$7 -> 282.6
A29: =A28+1 -> 2026 | B29: ='Detailed Results'!C69 -> 18.44 | C29: 516.2
A30: =A29+1 -> 2027 | B30: ='Detailed Results'!C70 -> 25.34 | C30: 709.5
A31: 2028 | B31: ='Detailed Results'!C71 -> 31.05 | C31: 869.3
A32: 2029 | B32: ='Detailed Results'!C72 -> 35.77 | C32: 1001.4
A33: 2030 | B33: ='Detailed Results'!C73 -> 37.53 | C33: 1050.8
A34: 2031 | B34: ='Detailed Results'!C74 -> 28.90 | C34: 809.1
A35: 2032 | B35: ='Detailed Results'!C75 -> 21.76 | C35: 609.3
A36: 2033 | B36: ='Detailed Results'!C76 -> 15.86 | C36: 444.0
A37: 2034 | B37: ='Detailed Results'!C77 -> 10.97 | C37: 307.3
A38: 2035 | B38: ='Detailed Results'!C78 -> 6.65 | C38: 186.2
A39: 2036 | B39: ='Detailed Results'!C79 -> 5.21 | C39: 145.9
A40: 2037 | B40: ='Detailed Results'!C80 -> 4.02 | C40: 112.6
A41: 2038 | B41: ='Detailed Results'!C81 -> 3.04 | C41: 85.1
A42: 2039 | B42: ='Detailed Results'!C82 -> 2.23 | C42: 62.3
A43: 2040 | B43: ='Detailed Results'!C83 -> 1.52 | C43: 42.5
A44: 2041 | B44: ='Detailed Results'!C84 -> 1.22 | C44: 34.2
A45: 2042 | B45: ='Detailed Results'!C85 -> 0.98 | C45: 27.4
A46: 2043 | B46: ='Detailed Results'!C86 -> 0.78 | C46: 21.7
A47: 2044 | B47: ='Detailed Results'!C87 -> 0.61 | C47: 17.0
A48: 2045 | B48: ='Detailed Results'!C88 -> 0.47 | C48: 13.1
A49: 2046 | B49: ='Detailed Results'!C89 -> 0.38 | C49: 10.6
A50: 2047 | B50: ='Detailed Results'!C90 -> 0.30 | C50: 8.4
A51: 2048 | B51: ='Detailed Results'!C91 -> 0.24 | C51: 6.7
A52: 2049 | B52: ='Detailed Results'!C92 -> 0.19 | C52: 5.2
A53: 2050 | B53: ='Detailed Results'!C93 -> 0.14 | C53: 4.0
A54: Total | B54: =SUM(B28:B53) -> 263.7 | C54: =SUM(C28:C53) -> 7383
A55: ACKNOWLEDGEMENTS
A56: U.S. EPA would like to thank the following people for their independent peer review of the calculator: Nicole Berge, University of South Carolina; Andrew Carpenter, Northern Tilth LLC; and Debra Reinhart, University of Central Florida. The calculator was prepared with support from ERG under U.S. EPA Contract No. 68HERH22A0020 and 68HERC21D0003. The external peer review of the calculator was coordinated by Versar, Inc. under U.S. EPA Contract No. GS-00F-079CA.
A57: RECOMMENDED CITATION
A58: Please use the following citation when referencing this calculator:
A59: U.S. EPA (2024). Avoided Landfilled Food Waste Methane Emissions Calculator. Retrieved from: https://www.epa.gov/land-research/quantifying-methane-emissions-landfilled-food-waste.

Sheet Detailed Results
A1: Avoided Landfilled Food Waste Methane Emissions Calculator - Detailed Calculations
A2: This tab contains the detailed inputs and calculations used to determine both the total and yearly amounts of methane released from food waste landfilling.
A3: Inputs and Landfill Profile
A4: Table A: Calculator Inputs summarizes the user inputs from the "Summary Results" tab and the methane generation potential, food waste decay rate, and landfill capacity fraction used as inputs.
A5: Table B: Landfill Profile and Methane Fate details the landfill characteristics used to generate the methane emissions summary, which was created from EPA's Quantifying Methane Emissions from Landfilled Food Waste" Report (2023)
A6: Oxidation rate for 0-4 'years from initial waste placement' is assumed to be 10%, when the recently disposed food waste is still close to the working face of the landfill, similar to IPCC guidelines.
A7: Additionally, the calculator assumes that food waste decay begins the year the food waste is landfilled. Since the methane generation potential is given per unit of wet weight of food waste, the moisture content is not accounted for in these calculations. These calculations are only valid at 70% moisture content.
A8: Detailed Annual Calculations
A9: Table C: Methane Emissions Summary details the methane emissions generated and released for each year. Final methane emissions values are rounded to 2 decimals and CO2eq values are rounded to 1 decimal in the results table. The final summary value is arounded to 1 decimal. This allows users to see changes due to approximately 1 short ton of avoided food waste.
A10: The remaining tables below Table C detail the methane mass balance for each year. Tables below calculates the emissions over 30 years from a year's worth of food waste being landfilled, taking into account the amount of methane generated that is captured and destroyed and oxidized in the soil cover.
A11: Links to each source are included in the Source tab at the end of this calculator.
A13: Units
A14: m3 | B14: cubic meters
A15: MT | B15: metric ton
A16: CO2eq | B16: CO2 equivalent (Default Global Warming Potential [GWP] CH4 = 28)
A17: Inputs and Landfill Profile
A18: Table A: Calculator Inputs
A19: Variables and Constants | B19: Value | C19: Unit | D19: Source | E19: Notes
A20: Methane Generation Potential | B20: =1.62/25 -> 0.0648 | C20: MT CH4/short ton food waste | D20: U.S. EPA. (2020) | E20: Original factor was 1.62 metric ton CO2eq/short ton food waste, which used a GWP factor of 25 for methane. The value used here (0.0648) is converted to MT CH4 from 1.62 metric ton CO2eq/short ton food waste. This value assumes 70% moisture content and is used on a wet basis in the calculation table.
A21: Food Waste Decay Rate | B21: 0.19 | C21: Food decay rate(yr-1) | D21: U.S. EPA. (2020)
A22: Landfill Capacity Fraction with Gas Capture | B22: 0.927 | C22: Fraction of total landfill capacity | D22: U.S. EPA. (2024)
A23: Food Waste Avoided, Year 1 | B23: =Calculator!B10 -> 1000.00 | C23: Short tons Food Waste | D23: User Input | E23: Entered on the Summary Results Tab
A24: Food Waste Avoided, Year 2 | B24: =Calculator!B11 -> 1000.00 | C24: Short tons Food Waste | D24: User Input | E24: Entered on the Summary Results Tab
A25: Food Waste Avoided, Year 3 | B25: =Calculator!B12 -> 1000.00 | C25: Short tons Food Waste | D25: User Input | E25: Entered on the Summary Results Tab
A26: Food Waste Avoided, Year 4 | B26: =Calculator!B13 -> 1000.00 | C26: Short tons Food Waste | D26: User Input | E26: Entered on the Summary Results Tab
A27: Food Waste Avoided, Year 5 | B27: =Calculator!B14 -> 1000.00 | C27: Short tons Food Waste | D27: User Input | E27: Entered on the Summary Results Tab
A28: Food Waste Avoided, Year 6 | B28: =Calculator!B15 -> 1000.00 | C28: Short tons Food Waste | D28: User Input | E28: Entered on the Summary Results Tab
A30: Table B: Landfill Profile and Methane Fate
A31: Year from Initial Waste Placement | B31: Collection Efficiency | C31: Destruction Efficiency for Collected Methane | D31: Oxidation Rate
A32: 0 | B32: 0.00% | C32: 0 | D32: 10%
A33: 1 | B33: 0.00% | C33: 0 | D33: 10%
A34: 2 | B34: 0.00% | C34: 0 | D34: 10%
A35: 3 | B35: 0.00% | C35: 0 | D35: 10%
A36: 4 | B36: 0.00% | C36: 0 | D36: 10%
A37: 5 | B37: 50.00% | C37: 99% | D37: 25%
A38: 6 | B38: 50.00% | C38: 99% | D38: 25%
A39: 7 | B39: 50.00% | C39: 99% | D39: 25%
A40: 8 | B40: 50.00% | C40: 99% | D40: 25%
A41: 9 | B41: 50.00% | C41: 99% | D41: 25%
A42: 10 | B42: 75.00% | C42: 99% | D42: 25%
A43: 11 | B43: 75.00% | C43: 99% | D43: 25%
A44: 12 | B44: 75.00% | C44: 99% | D44: 25%
A45: 13 | B45: 75.00% | C45: 99% | D45: 25%
A46: 14 | B46: 75.00% | C46: 99% | D46: 25%
A47: 15 | B47: 82.50% | C47: 99% | D47: 25%
A48: 16 | B48: 82.50% | C48: 99% | D48: 25%
A49: 17 | B49: 82.50% | C49: 99% | D49: 25%
A50: 18 | B50: 82.50% | C50: 99% | D50: 25%
A51: 19 | B51: 82.50% | C51: 99% | D51: 25%
A52: 20 | B52: 82.50% | C52: 99% | D52: 25%
A53: 21 | B53: 90% | C53: 99% | D53: 25%
A54: 22 | B54: 90% | C54: 99% | D54: 25%
A55: 23 | B55: 90% | C55: 99% | D55: 25%
A56: 24 | B56: 90% | C56: 99% | D56: 25%
A57: 25 | B57: 90% | C57: 99% | D57: 25%
A58: 26 | B58: 90% | C58: 99% | D58: 25%
A59: 27 | B59: 90% | C59: 99% | D59: 25%
A60: 28 | B60: 90% | C60: 99% | D60: 25%
A61: 29 | B61: 90% | C61: 99% | D61: 25%
A62: 30 | B62: 90% | C62: 99% | D62: 25%
A65: Detailed Annual Calculations
A66: Table C: Methane Emissions Summary
A67: Year | B67: Yearly Methane Generated (MT CH4) | C67: Yearly Methane Released (MT CH4)
A68: =Calculator!B8 -> 2025 | B68: =SUM(E104,E139,E174,E210,E246,E282) -> 11.21 | C68: =SUM(H104,H139,H174,H210,H246,H282) -> 10.09
A69: =A68+1 -> 2026 | B69: 20.49 | C69: 18.44
A70: 2027 | B70: 28.15 | C70: 25.34
A71: 2028 | B71: 34.50 | C71: 31.05
A72: 2029 | B72: 39.74 | C72: 35.77
A73: 2030 | B73: 44.08 | C73: 37.53
A74: 2031 | B74: 36.45 | C74: 28.90
A75: 2032 | B75: 30.14 | C75: 21.76
A76: 2033 | B76: 24.93 | C76: 15.86
A77: 2034 | B77: 20.61 | C77: 10.97
A78: 2035 | B78: 17.05 | C78: 6.65
A79: 2036 | B79: 14.10 | C79: 5.21
A80: 2037 | B80: 11.66 | C80: 4.02
A81: 2038 | B81: 9.64 | C81: 3.04
A82: 2039 | B82: 7.97 | C82: 2.23
A83: 2040 | B83: 6.59 | C83: 1.52
A84: 2041 | B84: 5.45 | C84: 1.22
A85: 2042 | B85: 4.51 | C85: 0.98
A86: 2043 | B86: 3.73 | C86: 0.78
A87: 2044 | B87: 3.08 | C87: 0.61
A88: 2045 | B88: 2.55 | C88: 0.47
A89: 2046 | B89: 2.11 | C89: 0.38
A90: 2047 | B90: 1.74 | C90: 0.30
A91: 2048 | B91: 1.44 | C91: 0.24
A92: 2049 | B92: 1.19 | C92: 0.19
A93: 2050 | B93: 0.99 | C93: 0.14
A94: 2051 | B94: 0.82 | C94: 0.11
A95: 2052 | B95: 0.67 | C95: 0.09
A96: 2053 | B96: 0.56 | C96: 0.07
A97: 2054 | B97: 0.46 | C97: 0.06
A98: 2055 | B98: 0.38 | C98: 0.05
A101: Annual Methane Emissions Summary Tables Years 1 through 6 (based on the Year 1 selection from the Summary Results Tab)
A102: =_xlfn.CONCAT("Food Waste Addition during ",Calculator!A10) -> Food Waste Addition during Year 1 / 2025
A103: Year | B103: Year Since Placement | C103: Food Waste in Landfill (short tons, start of year) | D103: Food Waste Decayed (short tons) | E103: Methane Generated (MT CH4) | F103: Methane Captured (MT CH4) | G103: Methane Oxidized (MT CH4) | H103: Methane Released (MT CH4)
A104: =Calculator!$B8 -> 2025 | B104: 0 | C104: =Calculator!B10 -> 1000 | D104: =C104*(1-EXP(-$B$21)) -> 173 | E104: =D104*$B$20 -> 11.21 | F104: =E104*_xlfn.XLOOKUP(B104,$A$32:$A$62,$B$32:$B$62)*$B$22 -> 0.00 | G104: =(E104-F104)*_xlfn.XLOOKUP(B104,$A$32:$A$62,$D$32:$D$62) -> 1.12 | H104: =E104-F104*_xlfn.XLOOKUP(B104,$A$32:$A$62,$C$32:$C$62)-G104 -> 10.09
A105: =A104+1 -> 2026 | B105: =B104+1 -> 1 | C105: =C104-D104 -> 827 | D105: =C105*(1-EXP(-$B$21)) -> 143 | E105: =D105*$B$20 -> 9.27 | F105: 0.00 | G105: 0.93 | H105: 8.35
A106: =A105+1 -> 2027 | B106: 2 | C106: =C105-D105 -> 684 | D106: 118 | E106: 7.67 | F106: 0.00 | G106: 0.77 | H106: 6.90
A107: 2028 | B107: 3 | C107: 566 | D107: 98 | E107: 6.34 | F107: 0.00 | G107: 0.63 | H107: 5.71
A108: 2029 | B108: 4 | C108: 468 | D108: 81 | E108: 5.24 | F108: 0.00 | G108: 0.52 | H108: 4.72
A109: 2030 | B109: 5 | C109: 387 | D109: 67 | E109: 4.34 | F109: 2.01 | G109: 0.58 | H109: 1.77
A110: 2031 | B110: 6 | C110: 320 | D110: 55 | E110: 3.59 | F110: 1.66 | G110: 0.48 | H110: 1.46
A111: 2032 | B111: 7 | C111: 264 | D111: 46 | E111: 2.97 | F111: 1.37 | G111: 0.40 | H111: 1.21
A112: 2033 | B112: 8 | C112: 219 | D112: 38 | E112: 2.45 | F112: 1.14 | G112: 0.33 | H112: 1.00
A113: 2034 | B113: 9 | C113: 181 | D113: 31 | E113: 2.03 | F113: 0.94 | G113: 0.27 | H113: 0.83
A114: 2035 | B114: 10 | C114: 150 | D114: 26 | E114: 1.68 | F114: 1.17 | G114: 0.13 | H114: 0.39
A115: 2036 | B115: 11 | C115: 124 | D115: 21 | E115: 1.39 | F115: 0.96 | G115: 0.11 | H115: 0.33
A116: 2037 | B116: 12 | C116: 102 | D116: 18 | E116: 1.15 | F116: 0.80 | G116: 0.09 | H116: 0.27
A117: 2038 | B117: 13 | C117: 85 | D117: 15 | E117: 0.95 | F117: 0.66 | G117: 0.07 | H117: 0.22
A118: 2039 | B118: 14 | C118: 70 | D118: 12 | E118: 0.78 | F118: 0.55 | G118: 0.06 | H118: 0.18
A119: 2040 | B119: 15 | C119: 58 | D119: 10 | E119: 0.65 | F119: 0.50 | G119: 0.04 | H119: 0.12
A120: 2041 | B120: 16 | C120: 48 | D120: 8 | E120: 0.54 | F120: 0.41 | G120: 0.03 | H120: 0.10
A121: 2042 | B121: 17 | C121: 40 | D121: 7 | E121: 0.44 | F121: 0.34 | G121: 0.03 | H121: 0.08
A122: 2043 | B122: 18 | C122: 33 | D122: 6 | E122: 0.37 | F122: 0.28 | G122: 0.02 | H122: 0.07
A123: 2044 | B123: 19 | C123: 27 | D123: 5 | E123: 0.30 | F123: 0.23 | G123: 0.02 | H123: 0.06
A124: 2045 | B124: 20 | C124: 22 | D124: 4 | E124: 0.25 | F124: 0.19 | G124: 0.01 | H124: 0.05
A125: 2046 | B125: 21 | C125: 18 | D125: 3 | E125: 0.21 | F125: 0.17 | G125: 0.01 | H125: 0.03
A126: 2047 | B126: 22 | C126: 15 | D126: 3 | E126: 0.17 | F126: 0.14 | G126: 0.01 | H126: 0.02
A127: 2048 | B127: 23 | C127: 13 | D127: 2 | E127: 0.14 | F127: 0.12 | G127: 0.01 | H127: 0.02
A128: 2049 | B128: 24 | C128: 10 | D128: 2 | E128: 0.12 | F128: 0.10 | G128: 0.00 | H128: 0.02
A129: 2050 | B129: 25 | C129: 9 | D129: 1 | E129: 0.10 | F129: 0.08 | G129: 0.00 | H129: 0.01
A130: 2051 | B130: 26 | C130: 7 | D130: 1 | E130: 0.08 | F130: 0.07 | G130: 0.00 | H130: 0.01
A131: 2052 | B131: 27 | C131: 6 | D131: 1 | E131: 0.07 | F131: 0.06 | G131: 0.00 | H131: 0.01
A132: 2053 | B132: 28 | C132: 5 | D132: 1 | E132: 0.05 | F132: 0.05 | G132: 0.00 | H132: 0.01
A133: 2054 | B133: 29 | C133: 4 | D133: 1 | E133: 0.05 | F133: 0.04 | G133: 0.00 | H133: 0.01
A134: 2055 | B134: 30 | C134: 3 | D134: 1 | E134: 0.04 | F134: 0.03 | G134: 0.00 | H134: 0.00
A137: =_xlfn.CONCAT("Food Waste Addition during ",Calculator!A11) -> Food Waste Addition during Year 2 / 2026
A138: Year | B138: Year Since Placement | C138: Food Waste in Landfill (short tons, start of year) | D138: Food Waste Decayed (short tons) | E138: Methane Generated (MT CH4) | F138: Methane Captured (MT CH4) | G138: Methane Oxidized (MT CH4) | H138: Methane Released (MT CH4)
A139: =Calculator!$B8 -> 2025
A140: =A139+1 -> 2026 | B140: 0 | C140: =Calculator!B11 -> 1000 | D140: =C140*(1-EXP(-$B$21)) -> 173 | E140: =D140*$B$20 -> 11.21 | F140: =E140*_xlfn.XLOOKUP(B140,$A$32:$A$62,$B$32:$B$62)*$B$22 -> 0.00 | G140: =(E140-F140)*_xlfn.XLOOKUP(B140,$A$32:$A$62,$D$32:$D$62) -> 1.12 | H140: =E140-F140*_xlfn.XLOOKUP(B140,$A$32:$A$62,$C$32:$C$62)-G140 -> 10.09
A141: =A140+1 -> 2027 | B141: 1 | C141: =C140-D140 -> 827 | D141: 143 | E141: =D141*$B$20 -> 9.27 | F141: 0.00 | G141: 0.93 | H141: 8.35
A142: =A141+1 -> 2028 | B142: 2 | C142: 684 | D142: 118 | E142: 7.67 | F142: 0.00 | G142: 0.77 | H142: 6.90
A143: =A142+1 -> 2029 | B143: 3 | C143: 566 | D143: 98 | E143: 6.34 | F143: 0.00 | G143: 0.63 | H143: 5.71
A144: =A143+1 -> 2030 | B144: 4 | C144: 468 | D144: 81 | E144: 5.24 | F144: 0.00 | G144: 0.52 | H144: 4.72
A145: =A144+1 -> 2031 | B145: 5 | C145: 387 | D145: 67 | E145: 4.34 | F145: 2.01 | G145: 0.58 | H145: 1.77
A146: =A145+1 -> 2032 | B146: 6 | C146: 320 | D146: 55 | E146: 3.59 | F146: 1.66 | G146: 0.48 | H146: 1.46
A147: =A146+1 -> 2033 | B147: 7 | C147: 264 | D147: 46 | E147: 2.97 | F147: 1.37 | G147: 0.40 | H147: 1.21
A148: =A147+1 -> 2034 | B148: 8 | C148: 219 | D148: 38 | E148: 2.45 | F148: 1.14 | G148: 0.33 | H148: 1.00
A149: =A148+1 -> 2035 | B149: 9 | C149: 181 | D149: 31 | E149: 2.03 | F149: 0.94 | G149: 0.27 | H149: 0.83
A150: =A149+1 -> 2036 | B150: 10 | C150: 150 | D150: 26 | E150: 1.68 | F150: 1.17 | G150: 0.13 | H150: 0.39
A151: =A150+1 -> 2037 | B151: 11 | C151: 124 | D151: 21 | E151: 1.39 | F151: 0.96 | G151: 0.11 | H151: 0.33
A152: =A151+1 -> 2038 | B152: 12 | C152: 102 | D152: 18 | E152: 1.15 | F152: 0.80 | G152: 0.09 | H152: 0.27
A153: =A152+1 -> 2039 | B153: 13 | C153: 85 | D153: 15 | E153: 0.95 | F153: 0.66 | G153: 0.07 | H153: 0.22
A154: =A153+1 -> 2040 | B154: 14 | C154: 70 | D154: 12 | E154: 0.78 | F154: 0.55 | G154: 0.06 | H154: 0.18
A155: =A154+1 -> 2041 | B155: 15 | C155: 58 | D155: 10 | E155: 0.65 | F155: 0.50 | G155: 0.04 | H155: 0.12
A156: =A155+1 -> 2042 | B156: 16 | C156: 48 | D156: 8 | E156: 0.54 | F156: 0.41 | G156: 0.03 | H156: 0.10
A157: =A156+1 -> 2043 | B157: 17 | C157: 40 | D157: 7 | E157: 0.44 | F157: 0.34 | G157: 0.03 | H157: 0.08
A158: =A157+1 -> 2044 | B158: 18 | C158: 33 | D158: 6 | E158: 0.37 | F158: 0.28 | G158: 0.02 | H158: 0.07
A159: =A158+1 -> 2045 | B159: 19 | C159: 27 | D159: 5 | E159: 0.30 | F159: 0.23 | G159: 0.02 | H159: 0.06
A160: =A159+1 -> 2046 | B160: 20 | C160: 22 | D160: 4 | E160: 0.25 | F160: 0.19 | G160: 0.01 | H160: 0.05
A161: =A160+1 -> 2047 | B161: 21 | C161: 18 | D161: 3 | E161: 0.21 | F161: 0.17 | G161: 0.01 | H161: 0.03
A162: =A161+1 -> 2048 | B162: 22 | C162: 15 | D162: 3 | E162: 0.17 | F162: 0.14 | G162: 0.01 | H162: 0.02
A163: =A162+1 -> 2049 | B163: 23 | C163: 13 | D163: 2 | E163: 0.14 | F163: 0.12 | G163: 0.01 | H163: 0.02
A164: =A163+1 -> 2050 | B164: 24 | C164: 10 | D164: 2 | E164: 0.12 | F164: 0.10 | G164: 0.00 | H164: 0.02
A165: =A164+1 -> 2051 | B165: 25 | C165: 9 | D165: 1 | E165: 0.10 | F165: 0.08 | G165: 0.00 | H165: 0.01
A166: =A165+1 -> 2052 | B166: 26 | C166: 7 | D166: 1 | E166: 0.08 | F166: 0.07 | G166: 0.00 | H166: 0.01
A167: =A166+1 -> 2053 | B167: 27 | C167: 6 | D167: 1 | E167: 0.07 | F167: 0.06 | G167: 0.00 | H167: 0.01
A168: =A167+1 -> 2054 | B168: 28 | C168: 5 | D168: 1 | E168: 0.05 | F168: 0.05 | G168: 0.00 | H168: 0.01
A169: =A168+1 -> 2055 | B169: 29 | C169: 4 | D169: 1 | E169: 0.05 | F169: 0.04 | G169: 0.00 | H169: 0.01
A172: =_xlfn.CONCAT("Food Waste Addition during ",Calculator!A12) -> Food Waste Addition during Year 3 / 2027
A173: Year | B173: Year Since Placement | C173: Food Waste in Landfill (short tons, start of year) | D173: Food Waste Decayed (short tons) | E173: Methane Generated (MT CH4) | F173: Methane Captured (MT CH4) | G173: Methane Oxidized (MT CH4) | H173: Methane Released (MT CH4)
A174: =Calculator!$B8 -> 2025
A175: =A174+1 -> 2026
A176: =A175+1 -> 2027 | B176: 0 | C176: =Calculator!B12 -> 1000 | D176: =C176*(1-EXP(-$B$21)) -> 173 | E176: =D176*$B$20 -> 11.21 | F176: =E176*_xlfn.XLOOKUP(B176,$A$32:$A$62,$B$32:$B$62)*$B$22 -> 0.00 | G176: =(E176-F176)*_xlfn.XLOOKUP(B176,$A$32:$A$62,$D$32:$D$62) -> 1.12 | H176: =E176-F176*_xlfn.XLOOKUP(B176,$A$32:$A$62,$C$32:$C$62)-G176 -> 10.09
A177: =A176+1 -> 2028 | B177: 1 | C177: =C176-D176 -> 827 | D177: 143 | E177: =D177*$B$20 -> 9.27 | F177: 0.00 | G177: 0.93 | H177: 8.35
A178: =A177+1 -> 2029 | B178: 2 | C178: 684 | D178: 118 | E178: 7.67 | F178: 0.00 | G178: 0.77 | H178: 6.90
A179: =A178+1 -> 2030 | B179: 3 | C179: 566 | D179: 98 | E179: 6.34 | F179: 0.00 | G179: 0.63 | H179: 5.71
A180: =A179+1 -> 2031 | B180: 4 | C180: 468 | D180: 81 | E180: 5.24 | F180: 0.00 | G180: 0.52 | H180: 4.72
A181: =A180+1 -> 2032 | B181: 5 | C181: 387 | D181: 67 | E181: 4.34 | F181: 2.01 | G181: 0.58 | H181: 1.77
A182: =A181+1 -> 2033 | B182: 6 | C182: 320 | D182: 55 | E182: 3.59 | F182: 1.66 | G182: 0.48 | H182: 1.46
A183: =A182+1 -> 2034 | B183: 7 | C183: 264 | D183: 46 | E183: 2.97 | F183: 1.37 | G183: 0.40 | H183: 1.21
A184: =A183+1 -> 2035 | B184: 8 | C184: 219 | D184: 38 | E184: 2.45 | F184: 1.14 | G184: 0.33 | H184: 1.00
A185: =A184+1 -> 2036 | B185: 9 | C185: 181 | D185: 31 | E185: 2.03 | F185: 0.94 | G185: 0.27 | H185: 0.83
A186: =A185+1 -> 2037 | B186: 10 | C186: 150 | D186: 26 | E186: 1.68 | F186: 1.17 | G186: 0.13 | H186: 0.39
A187: =A186+1 -> 2038 | B187: 11 | C187: 124 | D187: 21 | E187: 1.39 | F187: 0.96 | G187: 0.11 | H187: 0.33
A188: =A187+1 -> 2039 | B188: 12 | C188: 102 | D188: 18 | E188: 1.15 | F188: 0.80 | G188: 0.09 | H188: 0.27
A189: =A188+1 -> 2040 | B189: 13 | C189: 85 | D189: 15 | E189: 0.95 | F189: 0.66 | G189: 0.07 | H189: 0.22
A190: =A189+1 -> 2041 | B190: 14 | C190: 70 | D190: 12 | E190: 0.78 | F190: 0.55 | G190: 0.06 | H190: 0.18
A191: =A190+1 -> 2042 | B191: 15 | C191: 58 | D191: 10 | E191: 0.65 | F191: 0.50 | G191: 0.04 | H191: 0.12
A192: =A191+1 -> 2043 | B192: 16 | C192: 48 | D192: 8 | E192: 0.54 | F192: 0.41 | G192: 0.03 | H192: 0.10
A193: =A192+1 -> 2044 | B193: 17 | C193: 40 | D193: 7 | E193: 0.44 | F193: 0.34 | G193: 0.03 | H193: 0.08
A194: =A193+1 -> 2045 | B194: 18 | C194: 33 | D194: 6 | E194: 0.37 | F194: 0.28 | G194: 0.02 | H194: 0.07
A195: =A194+1 -> 2046 | B195: 19 | C195: 27 | D195: 5 | E195: 0.30 | F195: 0.23 | G195: 0.02 | H195: 0.06
A196: =A195+1 -> 2047 | B196: 20 | C196: 22 | D196: 4 | E196: 0.25 | F196: 0.19 | G196: 0.01 | H196: 0.05
A197: =A196+1 -> 2048 | B197: 21 | C197: 18 | D197: 3 | E197: 0.21 | F197: 0.17 | G197: 0.01 | H197: 0.03
A198: =A197+1 -> 2049 | B198: 22 | C198: 15 | D198: 3 | E198: 0.17 | F198: 0.14 | G198: 0.01 | H198: 0.02
A199: =A198+1 -> 2050 | B199: 23 | C199: 13 | D199: 2 | E199: 0.14 | F199: 0.12 | G199: 0.01 | H199: 0.02
A200: =A199+1 -> 2051 | B200: 24 | C200: 10 | D200: 2 | E200: 0.12 | F200: 0.10 | G200: 0.00 | H200: 0.02
A201: =A200+1 -> 2052 | B201: 25 | C201: 9 | D201: 1 | E201: 0.10 | F201: 0.08 | G201: 0.00 | H201: 0.01
A202: =A201+1 -> 2053 | B202: 26 | C202: 7 | D202: 1 | E202: 0.08 | F202: 0.07 | G202: 0.00 | H202: 0.01
A203: =A202+1 -> 2054 | B203: 27 | C203: 6 | D203: 1 | E203: 0.07 | F203: 0.06 | G203: 0.00 | H203: 0.01
A204: =A203+1 -> 2055 | B204: 28 | C204: 5 | D204: 1 | E204: 0.05 | F204: 0.05 | G204: 0.00 | H204: 0.01
A208: =_xlfn.CONCAT("Food Waste Addition during ",Calculator!A13) -> Food Waste Addition during Year 4 / 2028
A209: Year | B209: Year Since Placement | C209: Food Waste in Landfill (short tons, start of year) | D209: Food Waste Decayed (short tons) | E209: Methane Generated (MT CH4) | F209: Methane Captured (MT CH4) | G209: Methane Oxidized (MT CH4) | H209: Methane Released (MT CH4)
A210: =Calculator!$B8 -> 2025
A211: =A210+1 -> 2026
A212: =A211+1 -> 2027
A213: =A212+1 -> 2028 | B213: 0 | C213: =Calculator!B13 -> 1000 | D213: =C213*(1-EXP(-$B$21)) -> 173 | E213: =D213*$B$20 -> 11.21 | F213: =E213*_xlfn.XLOOKUP(B213,$A$32:$A$62,$B$32:$B$62)*$B$22 -> 0.00 | G213: =(E213-F213)*_xlfn.XLOOKUP(B213,$A$32:$A$62,$D$32:$D$62) -> 1.12 | H213: =E213-F213*_xlfn.XLOOKUP(B213,$A$32:$A$62,$C$32:$C$62)-G213 -> 10.09
... 93 more rows

Sheet Year (Hidden) (hidden)
A1: Selectable starting years
A3: 2020
A4: =A3+1 -> 2021
A5: 2022
A6: 2023
A7: 2024
A8: 2025
A9: 2026
A10: 2027
A11: 2028
A12: 2029
A13: 2030
A14: 2031
A15: 2032
A16: 2033
A17: 2034
A18: 2035
A19: 2036
A20: 2037
A21: 2038
A22: 2039
A23: 2040
A24: 2041
A25: 2042
A26: 2043
A27: 2044
A28: 2045
A29: 2046
A30: 2047
A31: 2048
A32: 2049
A33: 2050

Sheet Documentation_Food Waste Decay
A1: Documentation - Food Waste Decay
A3: This document describes the calculations and references used to calculate the amount of methane avoided by preventing or avoiding the landfilling of food waste. It will walk through an example calculation. The calculator is built upon the peer-reviewed methodology found in EPA’s “Quantifying Methane Emissions from Landfilled Food Waste” report.
A5: Food waste decays into methane (CH4) and carbon dioxide (CO2) when landfilled. As a result, when food waste landfilling is prevented or avoided, those emissions are also avoided.
A6: The exact amount of methane and CO2 avoided depends on both food waste properties (such as carbon content and moisture content) and landfill properties (average temperature and rainfall).
A7: This calculator assumes that food waste characteristics are an average for the U.S. (the most important being methane generation potential and moisture) and that the landfill has average characteristics for a U.S. landfill; these parameters are static and are not intended to be adjusted by the end-user. This document notes where these assumptions about parameters occur in the calculation steps.
A9: The calculator models emissions over a 25 year timeline and this documentation uses the first 10 years as an example to demonstrate calculation steps.
A11: Tonnage of Landfilled Food Waste Avoided Per Year
A13: The calculator allows the user to specify the amount of landfilled food waste avoided per year, for a 6-year period. This value is entered in wet short tons with an assumed moisture content of 70%. Food waste avoided during each year is assumed to have independent, average gas collection installation schedules. Landfill gas collection efficiency is calculated based on the years since placement, not on the overall year in the scenario.
A16: Example
A17: In Table 1 a hypothetical user specifies the amounts of landfilled food waste avoided, with a starting year of 2025. These values will be used throughout this documentation as an example scenario. Table 2 shows how food waste ages, and how each year’s addition ages independently of other additions. Please note that “years since placement” is staggered each year’s amount of avoided food waste.
A19: The example details 10 years of methane emissions to briefly showcase calculations. The actual calculator covers emissions over 25-year timeline.
A21: Table 1. Sample Scenario of Landfilled Food Waste Avoided
G22: Year | I22: Landfilled Food Waste Avoided per year (Short tons per year)
G23: Year 1 / 2025 | I23: 500
G24: Year 2 / 2026 | I24: 500
G25: Year 3 / 2027 | I25: 1000
G26: Year 4 / 2028 | I26: 1000
G27: Year 5 / 2029 | I27: 1000
G28: Year 6 / 2030 | I28: 1000
A30: Table 2. Sample Scenario of Food Waste Landfilled Food Waste Avoided, Years Since Placement
F31: Years Since Placement
E32: Year | F32: Food Waste Landfilled in Year 1 | H32: Food Waste Landfilled in Year 2 | J32: Food Waste Landfilled in Year 3 | L32: Food Waste Landfilled in Year 4 | N32: Food Waste Landfilled in Year 5 | P32: Food Waste Landfilled in Year 6
E34: Year 1 | F34: 0
E35: Year 2 | F35: 1 | H35: 0
E36: Year 3 | F36: 2 | H36: 1 | J36: 0
E37: Year 4 | F37: 3 | H37: 2 | J37: 1 | L37: 0
E38: Year 5 | F38: 4 | H38: 3 | J38: 2 | L38: 1 | N38: 0
E39: Year 6 | F39: 5 | H39: 4 | J39: 3 | L39: 2 | N39: 1 | P39: 0
E40: Year 7 | F40: 6 | H40: 5 | J40: 4 | L40: 3 | N40: 2 | P40: 1
E41: Year 8 | F41: 7 | H41: 6 | J41: 5 | L41: 4 | N41: 3 | P41: 2
E42: Year 9 | F42: 8 | H42: 7 | J42: 6 | L42: 5 | N42: 4 | P42: 3
E43: Year 10 | F43: 9 | H43: 8 | J43: 7 | L43: 6 | N43: 5 | P43: 4
A45: Food Waste Decay
A47: It will take time for food waste to decay, with some food waste lasting for years in the landfill. The calculator uses the national average food waste decay rate of 0.19 yr-1 from EPA’s Waste Reduction Model (WARM) and “Quantifying Methane Emissions from Landfilled Food Waste” report. This rate is used with a pseudo first order reaction rate equation to determine what fraction of food waste decays each year:
A50: fraction of food waste decayed = 1-e^(-0.19)
A52: This means that about 17.3% of food waste will decay year-over-year. This calculator will use wet mass since the methane generation potential is specifically on a wet mass basis. This is the same assumption made by EPA’s Waste Reduction Model (WARM) v.15 and “Quantifying Methane Emissions from Landfilled Food Waste” report.
A55: Example
A57: Note: Due to rounding, performing the calculations given in the equations below may not return the exact results shown. Using the same user specified food waste amounts, food waste decayed and food waste remaining can be calculated for each year. Below is an example of that calculation sequence and the mass balance of Table 1.
A60: Initial mass of food waste: 500 short tons
A61: Mass of food waste decayed over the year: 500 short tons food waste* (1-e^(-0.19) ) = 86.5 short tons food waste
A62: Mass of food waste still in the landfill at the end of the year: 500-86.5 = 413.5 short tons food waste
A64: At the beginning of year 2 an additional 500 short tons of food waste is added to the landfill, but this addition is assumed to be independent of the food waste from year 1, with its own collection installation schedule. Therefore, food waste landfilled in year 1 will begin gas collection before food waste landfilled in year 2. Please refer to Table 2 for how ‘years since placement’ is staggered for each year. Table 3 shows the mass of food waste decayed and the mass remaining for the 500 tons of food waste landfilled in 2025.
A68: Table 3. Sample Scenario of Food Waste Decay and Mass Balance for 500 Short Tons of Food Waste
G69: Year | I69: Initial Mass (Wet short tons) | K69: Food Waste Decayed (Wet short tons) | M69: Remaining Mass (Wet short tons)
G71: Year 1 / 2025 | I71: 500 | K71: 86.5 | M71: 413.5
G72: Year 2 / 2026 | I72: 413.5 | K72: 71.5 | M72: 341.9
G73: Year 3 / 2027 | I73: 341.9 | K73: 59.2 | M73: 282.8
G74: Year 4 / 2028 | I74: 282.8 | K74: 48.9 | M74: 233.8
G75: Year 5 / 2029 | I75: 233.8 | K75: 40.5 | M75: 193.4
G76: Year 6 / 2030 | I76: 193.4 | K76: 33.5 | M76: 159.9
G77: Year 7 / 2031 | I77: 159.9 | K77: 27.7 | M77: 132.2
G78: Year 8 / 2032 | I78: 132.2 | K78: 22.9 | M78: 109.4
G79: Year 9 / 2033 | I79: 109.4 | K79: 18.9 | M79: 90.4
G80: Year 10 / 2034 | I80: 90.4 | K80: 15.6 | M80: 74.8

Sheet Documentation_Methane Fate
A1: Documentation - Methane Fate
A2: This tab describes the underlying calculations and references used to calculate the amount of methane avoided by preventing or avoiding the landfilling of food waste, including an example calculation.
A3: This tab specifically details the calculations on methane fate. In the diagram below, the steps following methane generation are detailed in this tab.
A5: Figure 1. General Schematic of Methane Generation and Fate
A24: Figure 1 descriptive text: A block flow diagram shows the general steps for calculations in this calculator. A portion of the diagram is circled to show the steps detailed in this specific tab. These steps are whether or not methane is captured, destroyed, oxidized, or released.
A27: Methane Generation Potential
A28: EPA’s “Quantifying Methane Emissions from Landfilled Food Waste” report estimated methane emissions for landfilled food waste using average food waste and landfill characteristics. This calculator makes the same food waste and landfill assumptions as that report but uses an updated global warming potential (GWP). The “Quantifying Methane Emissions from Landfilled Food Waste” report assumes a GWP value of 25 for methane and a methane generation potential of 1.62 metric tons of CO2equivalents (CO2eq)/ wet short ton food waste. This 100-year time horizon GWP value of 25 for methane was the official value at time of the modeling for that report, but EPA has since updated that value to 28.
A33: (1.62 metric tons CO_2 eq.)/(1 wet short ton food waste)*(1 metric ton CH_4)/(25 metric ton CO_2 eq.) = (0.0648 metric tons CH_4)/(1 wet short ton food waste)
A35: Converting the methane generation potential to a methane basis, rather than CO2eq. allows for the user to specify a methane GWP other than 25.
A36: Methane generated each year is calculated by multiplying the total amount of food waste decayed (on a wet basis) by the methane generation potential.
A38: (0.0648 metric tons CH_4)/(1 wet short ton food waste)*food waste decayed (wet short tons) = metric tons CH_4 generated
A40: Example
A41: Note: Due to rounding, performing the calculations given in the equations below may not return the exact results shown.
A43: Using the previous mass balance table (Table 3), and the methane generation potential of 0.0648 metric tons CH4/wet short ton food waste, methane generated can be calculated. In the first year, 86.5 wet short tons of food waste decays. Therefore, the total amount of methane generated in the first year is:
A46: (0.0648 metric tons CH_4)/(1 wet short ton food waste)*86.5 wet short tons = 5.6 metric tons CH_4 generated
A48: Table 4 shows the amount of methane generated for the first 10 years for food that is landfilled in year 1. Food waste landfilled in subsequent years has the same decay profile, but staggered by one year, two years, and so forth since decay is based on years since placement.
A51: Table 4. Sample Scenario of Methane Generation from Food Waste Decay, Mass Balance for Year 1
F53: Year | H53: Initial Mass (Wet short tons) | J53: Food Waste Decayed (Wet short tons) | L53: Remaining Mass (Wet short tons) | N53: Remaining Mass (Wet short tons)
F55: Year 1 / 2025 | H55: 500 | J55: 86.5 | L55: 413.5 | N55: 5.6
F56: Year 2 / 2026 | H56: 413.5 | J56: 71.5 | L56: 341.9 | N56: 4.6
F57: Year 3 / 2027 | H57: 341.9 | J57: 59.2 | L57: 282.8 | N57: 3.8
F58: Year 4 / 2028 | H58: 282.8 | J58: 48.9 | L58: 233.8 | N58: 3.2
F59: Year 5 / 2029 | H59: 233.8 | J59: 40.5 | L59: 193.4 | N59: 2.6
F60: Year 6 / 2030 | H60: 193.4 | J60: 33.5 | L60: 159.9 | N60: 2.2
F61: Year 7 / 2031 | H61: 159.9 | J61: 27.7 | L61: 132.2 | N61: 1.8
F62: Year 8 / 2032 | H62: 132.2 | J62: 22.9 | L62: 109.4 | N62: 1.5
F63: Year 9 / 2033 | H63: 109.4 | J63: 18.9 | L63: 90.4 | N63: 1.2
F64: Year 10 / 2034 | H64: 90.4 | J64: 15.6 | L64: 74.8 | N64: 1.0
A66: Methane Fate
A67: Once methane is generated it can be released to the atmosphere, destroyed via oxidation in the landfill cover, captured and destroyed, or captured and released (such as via a leak or faulty flare).
A68: This calculator uses the same assumptions as the “Quantifying Methane Emissions from Landfilled Food Waste” report and WARM v15 model for gas collection installation schedule and gas capture and destruction efficiency. Table 5 details the gas collection and destruction efficiency and schedule. The 99% destruction efficiency accounts for 1% loss of captured methane flaring and the collection efficiency accounts for leaks from equipment.
A72: Table 5. Gas Collection Efficiency and Schedule
G74: Year Since Placement | I74: Collection Efficiency (%) | K74: CH4 Destruction Efficiency (%) | M74: Oxidation Rate (%)
G76: 0-4 | I76: 0.0% | K76: N/A | M76: 10%
G77: 5-9 | I77: 50.0% | K77: 99% | M77: 25%
G78: 10-14 | I78: 75.0% | K78: 99% | M78: 25%
G79: 15-20 | I79: 82.5% | K79: 99% | M79: 25%
G80: 21-25 | I80: 90.0% | K80: 99% | M80: 25%
A82: Methane Captured
A83: When there is a gas capture system in place, methane generated is multiplied by the collection efficiency to determine how much is captured. In Year 5, 50% of methane generated is captured and in Year 18, 82.5% is captured. The full capture schedule is detailed above in Table 5. Using EPA’s Landfill Methane Outreach Program database, the amount of landfills with gas capture systems (on a total mass landfilled-weighted basis) was calculated at 92.7%. This value is close to the 92.3% that was calculated in the “Quantifying Methane Emissions from Landfilled Food Waste” report for 2020. This value is assumed to be constant.
A87: methane captured (metric tons CH_4 ) = methane generated (metric tons CH_4 )*collection efficiency (fraction CH_4 collected)*0.927
A89: Methane Destroyed
A90: 99% of methane captured is destroyed by combustion and becomes biogenic CO2, which is assumed to have a GWP value of zero, as described in the formula below.
A92: methane destroyed (metric tons CH_4 ) = methane captured (metric tons CH_4 )*0.99
A94: Methane Oxidized
A95: Several factors limit the capture of methane: newly landfilled food waste can be uncovered for several years, landfills with gas capture systems in place do not capture all methane, and some landfills do not implement gas capture at all. For these scenarios the calculator assumes that methane passes through the landfill cover where some is oxidized, then it is released to the atmosphere. This calculator assumes that 10% of methane is oxidized in the landfill cover in the initial five years (year 0-4 since placement), and 25% afterwards.
A98: It is assumed that 92.7% of landfills have a gas capture system and 7.3% do not. The collection efficiency of any given year only applies to the landfills with gas capture systems.
A100: methane oxidized (metric tons CH_4 ) = [methane generated (metric tons CH_4 )-methane captured (metric tons CH_4 )]*oxidation rate (fraction CH_4 oxidized)
A102: Methane Released
A103: Methane that is not destroyed or oxidized is instead released to the environment. This value is the emissions of methane that would occur if food waste was landfilled. The amount of methane release each year is summed to get the total avoided emissions for food waste that is not landfilled. This value is calculated as the balance of methane generated, as shown below:
A106: methane released (metric tons CH_4 ) = methane generated-methane destroyed-methane oxidized
A108: Please note that this value does not consider if food waste is managed in another pathway, those impacts are outside the scope of this calculation. More extensive modeling on food waste management can be found in EPA’s Waste Reduction Model (WARM).

Sheet Documentation_Example Calc
A1: Documentation - Example Calculation
A2: This tab describes the underlying calculations and references used to calculate the amount of methane avoided by preventing or avoiding the landfilling of food waste, including an example calculation.
A3: This tab specifically details the example calculations. Table 6 at the bottom includes methane fate for the example scencario. References for the calculator are included on the Sources tab.
A5: Example 1
A6: Note: Due to rounding, performing the calculations given in the equations below may not return the exact results shown.
A8: Using the methane generation amounts previously calculated for the first 10 years of the sample scenario, methane release amounts can be calculated. In this example methane released in the first year is calculated for 500 short tons of food waste.
A11: Methane Generated
A13: Year 1 (2025): 5.6 Metric tons CH_4 generated, see Table 4
A15: Methane Destroyed
A17: Gas Collection Efficiency: 0%
A18: Landfills with Gas Collection: 92.7%
A19: Destruction efficiency: 99%
A21: 5.6 metric tons CH_4*0*0.927*0.99 = 0 metric tons CH_4 destroyed
A23: No methane is captured and destroyed since the gas collection system has not been implemented yet.
A25: Methane Oxidized
A27: Gas Collection Efficiency: 0%
A28: Landfills with Gas Collection: 92.7%
A29: Methane Oxidation Amount: 10%
A31: 5.6 metric tons CH_4*[(1-0)*0.927+0.0723]*0.10 = 0.6 metric tons CH_4 oxidized
A33: 0.6 metric tons of methane is oxidized in the landfill cover for Year 1 (2025).
A35: Methane Released
A37: Since zero methane is captured and destroyed and 0.6 metric tons is oxidized, the balance amount is released.
A39: 5.6-0-0.6 = 5.0 metric tons CH_4 released
A41: Example 2
A42: Note: Due to rounding, performing the calculations given in the equations below may not return the exact results shown.
A44: Using the methane generation amounts previously calculated for the first 10 years of the sample scenario (where 500 tons of food waste is landfilled), methane release amounts can be calculated. Unlike Example 1, which calculated methane releases in the initial placement year, in Year 6 the gas collection system is installed and some methane is capture and destroyed.
A47: Methane Generated
A49: Year 6 (2030): 2.2 Metric tons CH_4 generated, see Table 4
A51: Methane Destroyed
A53: Gas Collection Efficiency: 0%
A54: Landfills with Gas Collection: 92.7%
A55: Destruction efficiency: 99%
A57: 2.2 metric tons CH_4*0.5*0.927*0.99 = 1.0 metric tons CH_4 destroyed
A59: 1.0 metric tons of methane is captured and destroyed for Year 6 (2030).
A61: Methane Oxidized
A63: Gas Collection Efficiency: 0%
A64: Landfills with Gas Collection: 92.7%
A65: Methane Oxidation Amount: 25%
A67: 2.2 metric tons CH_4*[(1-0.5)*0.927+0.0723]*0.25 = 0.3 metric tons CH_4 oxidized
A69: 0.3 metric tons of methane is oxidized in the landfill cover for Year 6 (2030).
A71: Methane Released
A73: Since 1.0 metric tons of methane is captured and destroyed and 0.3 metric tons is oxidized, the balance amount is released.
A75: 2.2-1.0-0.3 = 0.9 metric tons CH_4 released
A77: Table 6 below details methane fate for 500 short tons of food waste for the first 10 years. Please note that the listed gas collection schedule column and methane oxidation rate would only apply to food waste landfilled in Year 1 (2025). Due to rounding, the values in the table below may not add up exactly.
A80: Table 6. Sample Scenario of Food Waste Decay and Methane Fate for 500 Short Tons of Food Waste Avoided in Year 1
A82: Year | C82: Initial Mass (Wet short tons) | E82: Food Waste Decayed (Wet short tons) | G82: Remaining Mass (Wet short tons) | I82: Methane Generated (Metric tons CH4) | K82: Capture Efficiency | L82: Methane Captured per Year (Metric tons CH4) (Wet short tons) | N82: Methane Destroyed Per Year (Metric tons CH4) | P82: Methane Oxidation Rate | Q82: Methane Oxidized per year (Metric tons CH4) | S82: Methane Released per Year (Metric tons CH4)
A85: Year 1 / 2025 | C85: 500 | E85: 86.5 | G85: 413.5 | I85: 5.6 | K85: 0% | L85: 0 | M85: 0 | N85: 0 | O85: 0 | P85: 10% | Q85: 0.6 | R85: 0.6 | S85: 5 | T85: 5
A86: Year 2 / 2026 | C86: 413.5 | E86: 71.5 | G86: 341.9 | I86: 4.6 | K86: 0% | L86: 0 | M86: 0 | N86: 0 | O86: 0 | P86: 10% | Q86: 0.5 | R86: 0.5 | S86: 4.2 | T86: 4.2
A87: Year 3 / 2027 | C87: 341.9 | E87: 59.2 | G87: 282.8 | I87: 3.8 | K87: 0% | L87: 0 | M87: 0 | N87: 0 | O87: 0 | P87: 10% | Q87: 0.4 | R87: 0.4 | S87: 3.5 | T87: 3.5
A88: Year 4 / 2028 | C88: 282.8 | E88: 48.9 | G88: 233.8 | I88: 3.2 | K88: 0% | L88: 0 | M88: 0 | N88: 0 | O88: 0 | P88: 10% | Q88: 0.3 | R88: 0.3 | S88: 2.9 | T88: 2.9
A89: Year 5 / 2029 | C89: 233.8 | E89: 40.5 | G89: 193.4 | I89: 2.6 | K89: 0% | L89: 1.2 | M89: 1.2 | N89: 1.2 | O89: 1.2 | P89: 10% | Q89: 0.3 | R89: 0.3 | S89: 2.4 | T89: 2.4
A90: Year 6 / 2030 | C90: 193.4 | E90: 33.5 | G90: 159.9 | I90: 2.2 | K90: 50% | L90: 1 | M90: 1 | N90: 1 | O90: 1 | P90: 25% | Q90: 0.3 | R90: 0.3 | S90: 0.9 | T90: 0.9
A91: Year 7 / 2031 | C91: 159.9 | E91: 27.7 | G91: 132.2 | I91: 1.8 | K91: 50% | L91: 0.8 | M91: 0.8 | N91: 0.8 | O91: 0.8 | P91: 25% | Q91: 0.2 | R91: 0.2 | S91: 0.7 | T91: 0.7
A92: Year 8 / 2032 | C92: 132.2 | E92: 22.9 | G92: 109.4 | I92: 1.5 | K92: 50% | L92: 0.7 | M92: 0.7 | N92: 0.7 | O92: 0.7 | P92: 25% | Q92: 0.2 | R92: 0.2 | S92: 0.6 | T92: 0.6
A93: Year 9 / 2033 | C93: 109.4 | E93: 18.9 | G93: 90.4 | I93: 1.2 | K93: 50% | L93: 0.6 | M93: 0.6 | N93: 0.6 | O93: 0.6 | P93: 25% | Q93: 0.2 | R93: 0.2 | S93: 0.5 | T93: 0.5
A94: Year 10 / 2034 | C94: 90.4 | E94: 15.6 | G94: 74.8 | I94: 1.0 | K94: 50% | L94: 0.5 | M94: 0.5 | N94: 0.5 | O94: 0.5 | P94: 25% | Q94: 0.1 | R94: 0.1 | S94: 0.4 | T94: 0.4

Sheet Sources
A1: Sources
A2: IPCC (2019). 2019 Refinement to the 2006 IPCC Guidelines for National Greenhouse Gas Inventories, Chapter 3 Solid Waste Disposal. https://www.ipcc-nggip.iges.or.jp/public/2019rf/pdf/5_Volume5/19R_V5_3_Ch03_SWDS.pdf
A3: U.S. EPA. (2020a). Documentation for Greenhouse Gas Emission and Energy Factors Used in the Waste Reduction Model (WARM). https://www.epa.gov/sites/default/files/2020-12/documents/warm_background_v15_10-29-2020.pdf
A4: U.S. EPA. (2020b). Documentation for Greenhouse Gas Emission and Energy Factors Used in the Waste Reduction Model (WARM). https://www.epa.gov/sites/default/files/2020-12/documents/warm_management_practices_v15_10-29-2020.pdf
A5: U.S. EPA. (2023a). Quantifying Methane Emissions from Landfilled Food Waste (EPA-600-R-23-064). Office of Research and Development. https://www.epa.gov/system/files/documents/2023-10/food-waste-landfill-methane-10-8-23-final_508-compliant.pdf
A6: U.S. EPA. (2023b). Catalog of IPCC AR4, AR5, and AR6 20-, 100-, and 500-year GWPs https://catalog.data.gov/dataset/ipcc-ar4-ar5-and-ar6-20-100-and-500-year-gwps
A7: U.S. EPA. (2023c). From Field to Bin: The Environmental Impacts of U.S. Food Waste Management Pathways. https://www.epa.gov/system/files/documents/2023-10/part2_wf-pathways_report_formatted_no-appendices_508-compliant.pdf
A8: U.S. EPA (2024). Landfill Methane Outreach Program Database. https://www.epa.gov/lmop/lmop-landfill-and-project-database
